Cogmind - Beta 16 @@@ ROGUE MODE // 2025.11.17 @ 21:00:52 // Winter2019/RPGLIKE Player: Jaegerpls Result: Destroyed by BU-3TL(R) with Subdweller Laser Performance ------------- Evolutions (0) 0 Regions Visited (2) 400 Robots Destroyed (35) 175 Value Destroyed (715) 715 Prototype IDs (0) 0 Alien Tech Used (0) 0 Bonus (0) 0 TOTAL SCORE: 1290 Bonus ------- None Cogmind --------- Core Integrity 0/600 Matter 290/300 Energy 106/125 System Corruption 0% Temperature Cool (6) Movement Hovering (56) Location -10/Subcaves Parts ------- > --- POWER (1) -------- Light Ion Engine > --- PROPULSION (3) --- Hover Unit Hover Unit > --- UTILITY (3) ------ Improved Terrain Scanner Makeshift Light Armor Plating Hacking Suite > --- WEAPON (2) ------- Particle Cannon Particle Cannon > --- INVENTORY (1) ---- (None) Peak State ------------ > --- POWER ------------ Light Ion Engine > --- PROPULSION ------- Hover Unit Hover Unit > --- UTILITY ---------- Improved Terrain Scanner Makeshift Light Armor Plating Hacking Suite > --- WEAPON ----------- Particle Cannon Particle Cannon > --- INVENTORY -------- (None) [Rating: 17] Favorites ----------- Power Light Ion Engine Engine Light Ion Engine Propulsion Hover Unit Wheel Wheel Hover Unit Hover Unit Utility Improved Terrain Scanner Device Improved Terrain Scanner Hackware Hacking Suite Protection Light Armor Plating Weapon Particle Cannon Energy Gun Medium Laser Energy Cannon Particle Cannon Build | -11 -10 -10 ------- Run | Yrd Mat Sub Slots Evolved 5 | 4 1 . Power . | . . . Propulsion 2 | 1 1 . Utility 2 | 2 . . Weapon 1 | 1 . . Parts Attached 21 | 6 14 1 Power 2 | 1 1 . Engine 2 | 1 1 . Core . | . . . Reactor . | . . . Propulsion 6 | 2 4 . Treads . | . . . Leg . | . . . Wheel 2 | 2 . . Hover 4 | . 4 . Flight . | . . . Utility 7 | 1 5 1 Device 4 | 1 3 . Storage . | . . . Processor . | . . . Hackware 1 | . 1 . Protection 2 | . 1 1 Artifact . | . . . Weapon 6 | 2 4 . Energy Gun 4 | 2 2 . Energy Cannon 2 | . 2 . Ballistic Gun . | . . . Ballistic Cannon . | . . . Launcher . | . . . Special Weapon . | . . . Impact Weapon . | . . . Slashing Weapon . | . . . Piercing Weapon . | . . . Special Melee Weapon . | . . . Unidentified Prototypes . | . . . Parts Lost 2 | . . 2 Power . | . . . Propulsion 1 | . . 1 Utility 1 | . . 1 Weapon . | . . . Highest Loss Streak 2 | . . 2 To Critical Strikes . | . . . Average Backups . | . . . Power . | . . . Propulsion . | . . . Utility . | . . . Weapon . | . . . Tool/Special . | . . . Unused Backups 1 | . 1 . Power . | . . . Propulsion . | . . . Utility . | . . . Weapon . | . . . Tool/Special 1 | . 1 . Average Slot Usage (%) 98 | . 97 99 Engine 11 | . 11 11 Wheel 2 | . 4 . Hover 25 | . 21 32 Device 26 | . 28 21 Hackware 4 | . . 11 Protection 3 | . 5 . Energy Gun 6 | . 10 . Energy Cannon 16 | . 13 22 Peak Build Rating 17 | 8 15 17 Average Rating 12 | 4 11 15 On Entrance 7 | . 8 15 Avg Prop Armor Cover (%) . | . . . Naked Turns . | . . . Heaviest Build 17 | 9 17 16 Greatest Support 23 | 20 23 23 Greatest Overweight (x) 2 | . 2 . Average Overweight (x) . | . . . Largest Inventory Capacity 1 | 1 1 1 Average Capacity 1 | 1 1 1 Most Carried 1 | . 1 1 Average Carried . | . . . Final Capacity 1 | 1 1 1 Final Carried 1 | . 1 . Class Distribution -------------------- 81% | Scavenger-Mutant 18% | Mutant Dominant Class ---------------- Scavenger-Mutant | -10/Materials Scavenger-Mutant | -10/Subcaves Resources | -11 -10 -10 ----------- Run | Yrd Mat Sub Matter Collected 400 | 260 140 . Remotely . | . . . Salvage Created 1033 | 197 731 105 Parts 60 | 16 39 5 Haulers Intercepted 2 | . 2 . Recyclers Shooed 2 | . 2 . Parts Field Recycled . | . . . Retrieved Matter . | . . . Parts Self-Destructed . | . . . Prevented . | . . . Parts Restored . | . . . Kills | -11 -10 -10 ------- Run | Yrd Mat Sub Combat Hostiles Destroyed 18 | . 14 4 Guns 5 | . 5 . Cannons 12 | . 8 4 Classes Destroyed 9 | 2 6 1 Worker 1 | . 1 . Builder 1 | . 1 . Tunneler 7 | 7 . . Hauler 2 | . 2 . Recycler 3 | 1 2 . Watcher 3 | . 3 . Swarmer 3 | . 3 . Grunt 11 | . 11 . Subdweller 4 | . . 4 Best Kill Streak 6 | 6 6 2 Combat Bots Only 5 | . 5 2 Max Kills in Single Turn 1 | 1 1 1 Gunslinging . | . . . Exploded . | . . . Melee . | . . . Uniques/NPCs Destroyed . | . . . Combat | -11 -10 -10 -------- Run | Yrd Mat Sub Hostile Shots Fired 105 | . 53 52 Missed 32 | . 19 13 Hits 73 | . 34 39 Projectile 73 | . 34 39 AOE 3 | . . 3 Critical Strikes 2 | . 1 1 Damage Taken 1292 | . 390 902 Core 1056 | . 313 743 Absorbed by Shields . | . . . Redirected to Core 742 | . 231 511 Core Remaining (%) 100 | 100 . . Volleys Fired 106 | 11 63 32 Largest 2 | 2 2 2 Hottest 136 | 90 136 136 Shots Fired 201 | 22 115 64 Gun 72 | 22 50 . Cannon 129 | . 65 64 Launcher . | . . . Special . | . . . Kinetic . | . . . Thermal 192 | 22 106 64 Explosive . | . . . Electromagnetic 9 | . 9 . Robot Hit Streak 24 | 4 11 24 Robot Miss Streak 4 | 4 3 2 Penetration Max . | . . . Secondary Targets . | . . . Shots Hit Robots 120 | 11 75 34 Core Hits 44 | 9 27 8 Critical Kills 1 | . 1 . Critical Parts Destroyed . | . . . Critical Strikes 2 | 1 1 . Burn 1 | 1 . . Meltdown 1 | . 1 . Melee Attacks . | . . . Impact . | . . . Slashing . | . . . Piercing . | . . . Sneak Attacks . | . . . Combat Hostiles . | . . . Follow-up Attacks . | . . . Damage Inflicted 2107 | 138 1313 656 Guns 627 | 138 489 . Cannons 1480 | . 824 656 Explosions . | . . . Melee . | . . . Ramming . | . . . Kinetic . | . . . Thermal 2050 | 138 1256 656 Explosive . | . . . Electromagnetic 57 | . 57 . Impact . | . . . Slashing . | . . . Piercing . | . . . Highest Corruption . | . . . Average Corruption . | . . . Corruption Purged . | . . . Corruption Blocked . | . . . Overload Shots . | . . . Overflow Damage 20 | . 20 . Projectiles 20 | . 20 . Explosions . | . . . Melee . | . . . Knockbacks . | . . . Impact . | . . . Kinetic . | . . . Secondary . | . . . Self-Inflicted Damage . | . . . Shots . | . . . Rammed . | . . . Targets Rammed . | . . . Kicked . | . . . Crushed . | . . . Highest Temperature 294 | . 294 . Average Temperature 59 | . 59 . Received Heat Transfer 288 | . 198 90 Effects 3 | . 3 . Interference 3 | . 3 . Siege Activations . | . . . Martial Activations . | . . . Shielding Activations . | . . . Robots Disrupted . | . . . Combat Hostiles . | . . . Robots Corrupted . | . . . Combat Hostiles . | . . . Parts Fried . | . . . Impact Corruptions . | . . . Robots Melted 1 | . 1 . Combat Hostiles 1 | . 1 . Parts Melted 10 | 2 6 2 Heat Transferred 4139 | 446 2509 1184 Parts Sabotaged . | . . . Parts Stolen . | . . . Parts Stripped . | . . . Power Chain Reactions . | . . . Alert | -11 -10 -10 ------- Run | Yrd Mat Sub Maximum Alert Level . | . . . Low Security (%) 100 | 100 100 . Level 1 . | . . . Level 2 . | . . . Level 3 . | . . . Level 4 . | . . . Level 5 . | . . . High Security . | . . . Max Security . | . . . Peak Influence 125 | 10 125 . Initial . | . . . Average 23 | 1 27 . Influence Increases 469 | 40 429 . Destroy 0b10 Robot/C 280 | . 280 . Destroy 0b10 Robot/NC 85 | 40 45 . Destroy Leader 70 | . 70 . Successful Hack 32 | . 32 . Destroy Structure 2 | . 2 . Influence Decreases 469 | 40 316 113 Entered New Map 55 | . . 55 Time Decay 414 | 40 316 58 Squads Dispatched 3 | . 3 . Investigation 3 | . 3 . Extermination . | . . . Reinforcement . | . . . Assault . | . . . Garrison . | . . . Intercept . | . . . Searches Triggered . | . . . Construction Impeded . | . . . Haulers Reinforced . | . . . Active Scanning Responses . | . . . Cargo Convoy Interrupts . | . . . Stealth | -11 -10 -10 --------- Run | Yrd Mat Sub Distress Signals 1 | . 1 . Communications Jammed . | . . . Distress Signals . | . . . Times Spotted 26 | . 20 6 Peak Tracking Total 4 | . 3 4 Tactical Retreats 2 | . 2 . ECM-based Alert Blocks 3 | . 3 . Traps | -11 -10 -10 ------- Run | Yrd Mat Sub Traps Triggered 1 | . 1 . Indirectly . | . . . Trap Hack Attempts . | . . . Triggered . | . . . Disarmed 1 | . 1 . Reprogrammed . | . . . Reused . | . . . Traps Extracted . | . . . Installed . | . . . Triggered . | . . . Machines | -11 -10 -10 ---------- Run | Yrd Mat Sub Machines Disabled . | . . . Max in Single Turn . | . . . Machines Repaired . | . . . Machines Dismantled . | . . . Machines Sabotaged . | . . . Overloaded Fab Kills . | . . . Hacking | -11 -10 -10 --------- Run | Yrd Mat Sub Machines Accessed 9 | . 9 . Terminals 7 | . 7 . Fabricators . | . . . Repair Stations . | . . . Recycling Units 2 | . 2 . Scanalyzers . | . . . Garrison Access . | . . . Total Hacks 27 | . 27 . Successful 19 | . 19 . Failed 7 | . 7 . Catastrophic 1 | . 1 . Database Lockouts 1 | . 1 . Manual 21 | . 21 . Terminals 21 | . 21 . Fabricators . | . . . Repair Stations . | . . . Recycling Units 6 | . 6 . Scanalyzers . | . . . Garrison Access . | . . . Terminal Hacks 6 | . 6 . Robot Analysis 2 | . 2 . Alert Level 1 | . 1 . Unreport Threat 1 | . 1 . Locate Traps 1 | . 1 . Disarm Traps 1 | . 1 . Fabricator Hacks . | . . . Repair Station Hacks . | . . . Recycling Unit Hacks 2 | . 2 . Report Inventory 1 | . 1 . Retrieve Components 1 | . 1 . Scanalyzer . | . . . Garrison Access Hacks . | . . . Unauthorized Hacks 11 | . 11 . Terminals 7 | . 7 . Assimilate 1 | . 1 . Botnet 1 | . 1 . Skim 5 | . 5 . Fabricators . | . . . Repair Stations . | . . . Recycling Units 4 | . 4 . Monitor 1 | . 1 . Reject 2 | . 2 . Recyclers 1 | . 1 . Scanalyzers . | . . . Garrison Access . | . . . Data Cores Recovered . | . . . Used . | . . . Hacking Detections 8 | . 8 . Full Trace Events 1 | . 1 . Feedback Events . | . . . Feedback Blocked . | . . . Robot Schematics Acquired . | . . . Robots Built . | . . . Authchips . | . . . Time . | . . . Total Robot Build Rating . | . . . Part Schematics Acquired . | . . . Parts Built . | . . . Authchips . | . . . Time . | . . . Total Part Build Rating . | . . . Part Studies Acquired . | . . . Parts Repaired . | . . . Time . | . . . Parts Recycled . | . . . Recycled Matter . | . . . Retrieved Matter . | . . . Retrieved Components 5 | . 5 . Parts Scanalyzed . | . . . Part Schematics Acquired . | . . . Parts Damaged . | . . . Bothacking | -11 -10 -10 ------------ Run | Yrd Mat Sub Used RIF Installer . | . . . Robots Hacked . | . . . Non-combat . | . . . Combat . | . . . Robot Hacks Applied . | . . . Relay Couplers Released . | . . . Fabnet Peak Effective % . | . . . Robots Rewired . | . . . Allies Hacked . | . . . Hacks Repelled . | . . . Allies | -11 -10 -10 -------- Run | Yrd Mat Sub Total Allies 1 | . 1 . Largest Group 1 | . 1 . Highest-Rated Group 10 | . 10 . Highest-Rated Ally 10 | . 10 . Total Orders . | . . . Ally Attacks . | . . . Total Damage . | . . . Kills . | . . . Allies Corrupted . | . . . Allies Melted . | . . . Intel | -11 -10 -10 ------- Run | Yrd Mat Sub Active Infowar (turns) 2073 | 4 1323 746 Terrain 2073 | 4 1323 746 ECM 217 | . 217 . Robot Analysis Total 2 | . 2 . Derelict Logs Recovered 1 | . . 1 Drone Launches . | . . . Drone Recoveries . | . . . Exploration | -11 -10 -10 ------------- Run | Yrd Mat Sub Turns Passed 2336 | 229 1361 746 Spaces Moved 1190 | 49 737 404 Core 2 | 2 . . Treads . | . . . Legs . | . . . Wheels 147 | 47 100 . Hover 1041 | . 637 404 Flight . | . . . Fastest Speed 50 | 50 52 52 Average Speed 78 | 78 92 52 Slowest Speed 185 | 80 185 56 Overloaded Moves . | . . . Propulsion Burnouts . | . . . Robots Hopped . | . . . Potential Cave-ins . | . . . Cave-ins Triggered . | . . . Exploration Rate (%) 38 | 4 87 25 Regions Visited 2 Branch Regions 1 Pre-discovered Areas 4 | . 3 1 Known Exits Taken . | . . . Unknown Exits Taken 2 | 1 1 . Scrap Searched 5 | . . 5 Spaces Dug . | . . . Terrain Destroyed . | . . . Melee . | . . . Projectile . | . . . AOE . | . . . Terrain Rammed . | . . . Walls Destroyed . | . . . Machines Disabled . | . . . Actions | -11 -10 -10 --------- Run | Yrd Mat Sub Total 2396 | 214 1304 878 Wait 1042 | 149 467 426 Move 1188 | 48 736 404 Hop . | . . . Pick Up 4 | . 3 1 Fast Attach 17 | 6 11 . Attach 2 | . 1 1 Detach 2 | . 2 . Swap 2 | . 2 . Drop 12 | . 11 1 Fire 106 | 11 63 32 Melee . | . . . Ram . | . . . Kick . | . . . Crush . | . . . Escape Stasis . | . . . Rewire . | . . . Trap . | . . . Miscellaneous 21 | . 8 13 Route ------- -11/Scrapyard -10/Materials (discovered 6 exits: [*Mat x3] / [*Min x2] / [*Sub]) -10/Subcaves (discovered 1 exit: [*Scr]) History --------- Turn | Location | Event 1 | -11/Scrapyard | Upgraded with Propulsion slot (x1) 1 | -11/Scrapyard | Upgraded with Utility slot (x2) 1 | -11/Scrapyard | Upgraded with Weapon slot (x1) 2 | -11/Scrapyard | Met Revision 17 13 | -11/Scrapyard | Discovered new exit (range 15) 230 | -11/Scrapyard | Entered Materials 281 | -10/Materials | Discovered new exit (range 13) 304 | -10/Materials | Build established: Mutant 700 | -10/Materials | Discovered new exit (range 11) 720 | -10/Materials | Build established: Scavenger-Mutant 1010 | -10/Materials | Central database locked down 1053 | -10/Materials | Discovered new exit (range 14) 1082 | -10/Materials | Discovered new exit (range 7) 1252 | -10/Materials | Learned location of 1 exit from Recycling 1283 | -10/Materials | Learned 2 Mines zone layouts 1320 | -10/Materials | Discovered new exit (range 11) 1324 | -10/Materials | Learned location of Mines (-9) 1337 | -10/Materials | Discovered new exit (range 14) 1376 | -10/Materials | Loaded intel: 11 interactive machine locations 1485 | -10/Materials | Reached level 2 1487 | -10/Materials | Upgraded with Propulsion slot (x1) 1591 | -10/Materials | Entered Subcaves 1592 | -10/Subcaves | Approached by a straggling Scientist 1592 | -10/Subcaves | Learned location of Zion (-7) 1621 | -10/Subcaves | Shifting Twisted Machinery released Sub. Machine Gun 1621 | -10/Subcaves | Shifting Twisted Machinery released Mak. Light Armor Plating 1998 | -10/Subcaves | Shifting Twisted Machinery released Sub. Laser 2078 | -10/Subcaves | Scientist uncovered a shortcut to Scraptown 2154 | -10/Subcaves | Shifting Twisted Machinery released Sub. Power Source 2273 | -10/Subcaves | Ambushed by Subdweller buried in earth 2298 | -10/Subcaves | Core integrity fell below 50% 2316 | -10/Subcaves | Core integrity fell below 20% 2337 | -10/Subcaves | Destroyed by BU-3TL(R) with Subdweller Laser Last Messages --------------- 73-0S7(c): "I think it's somewhere north of here" 73-0S7(c): "I think it's somewhere northeast of here" Sub. Laser falls loose from the Twisted Machinery. 73-0S7(c): "We're getting close, I can feel it." 02011_ 8K-DZU(u) tweaks Twisted Machinery. 73-0S7(c): "We're getting close, I can feel it." 02078_ 73-0S7(c): "Hah, right again, there it is!" 02079_ 73-0S7(c) exits level. 02106_ Subatomizers dissect the Mak. Light Armor Plating. Sub. Power Source falls loose from the Twisted Machinery. 02158_ 8K-DZU(u) builds Twisted Machinery. 02253_ 8K-DZU(u) tweaks Twisted Machinery. 02274_ 3P-WWI(R): "ARGHSUB!" 02299_ Sub. Machine Gun melted. 02299_ 3P-WWI(R) destroyed. 02305_ Heat Sink destroyed. 02310_ CQ-95D(R) affixes Scrap Shield Fragment to Scrap Shield. 02321_ Hover Unit destroyed. 02329_ Sub. Power Source melted. 02329_ CQ-95D(R) destroyed. Map ----- +----------------------------------------------------+ | | | | | | | | | | | | | ?????????????????????????????????????????????????? | | ?????????????????????????????????????????????????? | | ???????????????#?????????????????????????????????? | | ????????????????#?????#?##?##????????????????????? | | ????????????????#????#?#######?###???????????????? | | ???????????###########?############??????????????? | | ?????????###?################?####??##???????????? | | ???????#######################??#?#####????#?????? | | ??????#########################??#####?##????????? | | ?????################################?###?????#??? | | ????#####################################????#??#? | | ???####?##############################?###???????? | | ???################# ########## ########??????? | | ??##?############ ####### #########?????# | | ??#####?########; ###### #########?#??#? | | ?########## ## # ###### ###### ####### | | ?# ###### ##### ## ## | | ?## "##### ## ## # | | ?#### # R #"%##### ## | | ?#### ### R@=%= #### | | ##### ## ## u ###### # # | | ?######## ##" * ;# ########## ##? # | | ?######## ### "## #" #### "# ####### ### ? | | ? ? ## ####"#### ##### " ####### #### | | ? ####### ### ####""# ####### ##### | | ? ########## ## ###### ###### #### | | ?? #### #########"#### ###?# | | ?? ############### ""### ## ### | | ? ############# ### ##### *!& | | ??############### #" ###### =!% | | ? ################ [ ###### ## | | ?############### "#"### ##### ## | | #?############# ###### ##### ### | | ############## ###### #### | | ??######?##### ##### ### | | ?#######"" ### ###### #### ## | | " ""##""""### ""######> ## ### " # | | # #"""""## ""###### ##### ### ## "" | | ""X" +" """# "####### # ###### "## # | | """"""#""" # ####### ########### | | ######## " "## ###### ########### | | ########""""## ########## ### ########## " | | ####### " # ############# ######?###""" " | | ## # " ### ############ #### #### " | +----------------------------------------------------+ Best States ------------- Heat Dissipation 59 Energy Generation 15 Energy Capacity 250 Matter Stores 300 Matter Capacity 300 Sight Range 16 Robot Scan Range 4 Terrain Scan Range 16 Terrain Scan Density 310 ECM Strength 1 Additional Mass Support 6 Armor Coverage 150 Evasion (%) 54 Offensive Hacking 10 Item Schematics ----------------- None Robot Schematics ------------------ None Fabricated ------------ Nothing Repaired ---------- Nothing Studied --------- None Alien Tech Used ----------------- None Achievements -------------- None Challenges ------------ None RPGLIKE | -11 -10 -10 --------- Run | Yrd Mat Sub Levels Raised 1 | . 1 . XP Earned 5770 | 3000 1770 1000 XP Spent 4465 | 2990 1475 . Upgrades 17 | 11 6 . Propulsion Slot 2 | 1 1 . Utility Slot 2 | 2 . . Weapon Slot 1 | 1 . . Heat Dissipation 4 | 2 2 . Energy Generation 1 | . 1 . Mass Support 1 | . 1 . Inventory Capacity 1 | 1 . . Sensor Range 2 | 1 1 . Terrain Scan Density 3 | 3 . . Protomatter Created 320 | . 214 106 Integrity Restored 447 | . 153 294 Core 447 | . 153 294 Protomatter Decayed 112 | . 67 45 Game ------ Seed JammingAntigravDisplacer Manual? 0 Play Time 00:34:13 Cumulative 67.6 hours Start 2025.11.17 @ 20:41:01 End 2025.11.17 @ 21:00:52 Sessions 1 Manual Loads 0 Difficulty Rogue Special Mode Winter2019/RPGLIKE Game No. 66 Rogue 66 Adventurer 0 Explorer 0 Win Type - Total 0 Types 0/0/0/0/0/0/0/0/0/0 Lore% 57 Gallery% 36 Achievement% 33 Wizard Run 0 Options --------- Layout 0 ASCII 0 Keyboard 0 Movement Mouse Keybinds 0 Fullscreen 2 Font 24/Smallcaps Map View 76x50 Zoom Use 0% Tactical HUD 1 Map Filters NONE Filters NONE Steam 1 RUN: d56a00bd-161b-4680-af84-1948eb102430